fUSD/lending_fUSD_20240104
["ID","MTS","AMOUNT","RATE_DAILY","PERIOD"]
[310235749,1704406284463,-500.0,0.00035342,2]
[310235750,1704406284472,-500.0,0.00035342,2]
[310235751,1704406284483,-500.0,0.00035342,2]
[310235752,1704406284492,-162.55602516,0.00035342,2]
[310235753,1704406284502,-500.0,0.00035342,2]
[310235754,1704406284513,-500.0,0.00035342,2]
[310235755,1704406284523,-500.0,0.00035342,2]
[310235756,1704406284533,-500.0,0.00035342,2]
[310235757,1704406284543,-514.46904896,0.00035342,2]
[310235758,1704406284552,-500.0,0.00035342,2]
[310235759,1704406284562,-500.0,0.00035342,2]
[310235760,1704406284571,-500.0,0.00035342,2]
[310235761,1704406284581,-500.0,0.00035342,2]
[310235762,1704406284594,-500.0,0.00035342,2]
[310235763,1704406284604,-319.65331335,0.00035342,2]
[310235764,1704406284613,-500.0,0.00035342,2]
[310235765,1704406284623,-500.0,0.00035342,2]
[310235766,1704406284631,-247.08,0.00035342,2]
[310235767,1704406284641,-500.0,0.00035342,2]
[310235768,1704406284650,-500.0,0.00035342,2]
[310235769,1704406284659,-500.0,0.00035342,2]
[310235770,1704406284669,-500.0,0.00035342,2]
[310235771,1704406284678,-500.0,0.00035342,2]
[310235772,1704406284687,-500.0,0.00035342,2]
[310235773,1704406284698,-500.0,0.00035342,2]
[310235774,1704406284708,-500.0,0.00035342,2]
[310235775,1704406284717,-533.64,0.00035342,2]
[310235776,1704406284727,-500.0,0.00035342,2]
[310235777,1704406284737,-586.88,0.00035342,2]
[310235778,1704406284746,-500.0,0.00035342,2]
[310235779,1704406284758,-500.0,0.00035342,2]
[310235780,1704406284768,-970.98,0.00035342,2]
[310235781,1704406284777,-500.0,0.00035342,2]
[310235782,1704406284787,-500.0,0.00035342,2]
[310235783,1704406284797,-500.0,0.00035342,2]
[310235784,1704406284806,-500.0,0.00035342,2]
[310235785,1704406284815,-557.26,0.0003543,2]
[310235786,1704406284825,-199.44,0.00035478,2]
[310235787,1704406284835,-2300.48793908,0.00035532,2]
[310235788,1704406284844,-167.0,0.00035584,2]
[310235789,1704406284854,-500.0,0.000356,2]
[310235790,1704406284863,-500.0,0.00035616,2]
[310235791,1704406284873,-500.0,0.00035616,2]
[310235792,1704406284882,-500.0,0.00035616,2]
[310235793,1704406284891,-500.0,0.00035616,2]
[310235794,1704406284900,-668.71,0.00035616,2]
[310235795,1704406284909,-523.73474213,0.00035616,2]
[310235796,1704406284918,-500.0,0.00035616,2]
[310235797,1704406284927,-529.99,0.00035616,2]
[310235798,1704406284936,-500.0,0.00035616,2]
[310235799,1704406284945,-500.0,0.00035616,2]
[310235800,1704406284954,-500.0,0.00035616,2]
[310235801,1704406284963,-500.0,0.00035616,2]
[310235802,1704406284972,-500.0,0.00035616,2]
[310235803,1704406284981,-500.0,0.00035616,2]
[310235804,1704406284990,-500.0,0.00035616,2]
[310235805,1704406285000,-500.0,0.00035616,2]
[310235806,1704406285009,-500.0,0.00035616,2]
[310235807,1704406285020,-173.63232923,0.00035616,2]
[310235808,1704406285030,-500.0,0.00035616,2]
[310235809,1704406285039,-500.0,0.00035616,2]
[310235810,1704406285049,-500.0,0.00035616,2]
[310235811,1704406285059,-500.0,0.00035616,2]
[310235812,1704406285068,-500.0,0.00035616,2]
[310235813,1704406285077,-500.0,0.00035616,2]
[310235814,1704406285087,-500.0,0.00035616,2]
[310235815,1704406285096,-500.0,0.00035616,2]
[310235816,1704406285106,-500.0,0.00035616,2]
[310235817,1704406285115,-391.38,0.00035616,2]
[310235818,1704406285124,-500.0,0.00035616,2]
[310235819,1704406285133,-500.0,0.00035616,2]
[310235820,1704406285142,-533.64,0.00035616,2]
[310235821,1704406285152,-500.0,0.00035616,2]
[310235822,1704406285161,-586.88,0.00035616,2]
[310235823,1704406285170,-500.0,0.00035616,2]
[310235824,1704406285179,-500.0,0.00035616,2]
[310235825,1704406285189,-970.98,0.00035616,2]
[310235826,1704406285198,-500.0,0.00035616,2]
[310235827,1704406285207,-527.72,0.00035616,2]
[310235828,1704406285217,-150.0,0.00035616,2]
[310235829,1704406285226,-388.75549714,0.0003562,10]
[310235830,1704406285235,-388.75549714,0.0003562,10]
[310235831,1704406285244,-388.75549714,0.0003562,10]
[310235832,1704406285253,-388.75549714,0.0003562,10]
[310235833,1704406285262,-388.75549714,0.0003562,10]
[310235834,1704406285271,-388.75549714,0.0003562,10]
[310235835,1704406285280,-388.75549714,0.0003562,10]
[310235836,1704406285289,-388.75549714,0.0003562,10]
[310235837,1704406285298,-388.75549714,0.0003562,10]
[310235838,1704406285307,-388.75549714,0.0003562,10]
[310235839,1704406285317,-388.75549714,0.0003562,10]
[310235840,1704406285326,-388.75549714,0.0003562,10]
[310235841,1704406285336,-388.75549714,0.0003562,10]
[310235842,1704406285345,-388.75549714,0.0003562,10]
[310235843,1704406285354,-388.75549714,0.0003562,10]
[310235844,1704406285363,-388.75549714,0.0003562,10]
[310235845,1704406285372,-388.75549714,0.0003562,10]
[310235846,1704406285381,-388.75549714,0.0003562,10]
[310235847,1704406285391,-388.75549714,0.0003562,10]
[310235848,1704406285401,-388.75,0.0003562,10]
[310235849,1704406285411,-153.15236529,0.0003562,10]
[310235850,1704406285420,-153.15236529,0.0003562,10]
[310235851,1704406285430,-153.15236529,0.0003562,10]
[310235852,1704406285439,-153.15236529,0.0003562,10]
[310235853,1704406285449,-153.15236529,0.0003562,10]
[310235854,1704406285459,-153.15236529,0.0003562,10]
[310235855,1704406285468,-153.15236529,0.0003562,10]
[310235856,1704406285478,-153.15236529,0.0003562,10]
[310235857,1704406285487,-153.15236529,0.0003562,10]
[310235858,1704406285497,-153.15236529,0.0003562,10]
[310235859,1704406285506,-153.15236529,0.0003562,10]
[310235860,1704406285516,-153.15236529,0.0003562,10]
[310235861,1704406285526,-153.15236529,0.0003562,10]
[310235862,1704406285535,-153.15236529,0.0003562,10]
[310235863,1704406285544,-153.15,0.0003562,10]
[310235864,1704406285554,-372.84866312,0.0003562,10]
[310235865,1704406285564,-372.84866312,0.0003562,10]
[310235866,1704406285574,-372.84866312,0.0003562,10]
[310235867,1704406285583,-372.84866312,0.0003562,10]
[310235868,1704406285593,-372.84866312,0.0003562,10]
[310235869,1704406285603,-372.84866312,0.0003562,10]
[310235870,1704406285613,-372.84866312,0.0003562,10]
[310235871,1704406285622,-372.84866312,0.0003562,10]
[310235872,1704406285631,-372.84866312,0.0003562,10]
[310235873,1704406285641,-372.84866312,0.0003562,10]
[310235874,1704406285651,-372.84866312,0.0003562,10]
[310235875,1704406285660,-372.84866312,0.0003562,10]
[310235876,1704406285669,-372.84866312,0.0003562,10]
[310235877,1704406285679,-372.84866312,0.0003562,10]
[310235878,1704406285688,-372.84866312,0.0003562,10]
[310235879,1704406285697,-372.84866312,0.0003562,10]
[310235880,1704406285706,-372.84866312,0.0003562,10]
[310235881,1704406285715,-372.84866312,0.0003562,10]
[310235882,1704406285725,-372.84866312,0.0003562,10]
[310235883,1704406285734,-372.84,0.0003562,10]
[310235884,1704406285744,-658.35638103,0.0003562,10]
[310235885,1704406285753,-658.35638103,0.0003562,10]
[310235886,1704406285762,-658.35638103,0.0003562,10]
[310235887,1704406285771,-658.35638103,0.0003562,10]
[310235888,1704406285815,-658.35638103,0.0003562,10]
[310235889,1704406285824,-658.35638103,0.0003562,10]
[310235890,1704406285834,-658.35638103,0.0003562,10]
[310235891,1704406285843,-658.35638103,0.0003562,10]
[310235892,1704406285852,-658.35638103,0.0003562,10]
[310235893,1704406285861,-658.35638103,0.0003562,10]
[310235894,1704406285870,-658.35638103,0.0003562,10]
[310235895,1704406285879,-658.35638103,0.0003562,10]
[310235896,1704406285889,-658.35638103,0.0003562,10]
[310235897,1704406285898,-658.35638103,0.0003562,10]
[310235898,1704406285907,-658.35638103,0.0003562,10]
[310235899,1704406285916,-658.35638103,0.0003562,10]
[310235900,1704406285925,-658.35638103,0.0003562,10]
[310235901,1704406285934,-658.35638103,0.0003562,10]
[310235902,1704406285944,-658.35638103,0.0003562,10]
[310235903,1704406285952,-658.35,0.0003562,10]
[310235904,1704406285961,-577.4976166,0.0003562,10]
[310235905,1704406285971,-577.4976166,0.0003562,10]
[310235906,1704406285980,-577.4976166,0.0003562,10]
[310235907,1704406285989,-577.4976166,0.0003562,10]
[310235908,1704406285998,-577.4976166,0.0003562,10]
[310235909,1704406286007,-577.4976166,0.0003562,10]
[310235910,1704406286016,-577.4976166,0.0003562,10]
[310235911,1704406286029,-577.4976166,0.0003562,10]
[310235912,1704406286040,-577.4976166,0.0003562,10]
[310235913,1704406286050,-577.4976166,0.0003562,10]
[310235914,1704406286059,-577.4976166,0.0003562,10]
[310235915,1704406286068,-577.4976166,0.0003562,10]
[310235916,1704406286078,-577.4976166,0.0003562,10]
[310235917,1704406286088,-577.4976166,0.0003562,10]
[310235918,1704406286097,-577.4976166,0.0003562,10]
[310235919,1704406286106,-577.4976166,0.0003562,10]
[310235920,1704406286115,-577.4976166,0.0003562,10]
[310235921,1704406286124,-577.4976166,0.0003562,10]
[310235922,1704406286133,-577.4976166,0.0003562,10]
[310235923,1704406286142,-577.49,0.0003562,10]
[310235924,1704406286151,-13076.89,0.000357,7]
[310235925,1704406286160,-7709.08,0.000357,7]
[310235926,1704406286169,-1681.0,0.000357,3]
[310235927,1704406286178,-1352.0,0.0003573,2]
[310235928,1704406286186,-833.0,0.0003573,2]
[310235929,1704406286196,-765.378,0.0003573,2]
[310235930,1704406286205,-1234.0,0.0003573,2]
[310235931,1704406286214,-1261.0,0.0003573,2]
[310235932,1704406286223,-444.16,0.0003573,2]
[310235933,1704406286232,-17592.0,0.000358,3]
[310235934,1704406286242,-152.0,0.0003588,3]
[310235935,1704406286250,-500.0,0.0003589,2]
[310235936,1704406286260,-500.0,0.0003589,2]
[310235937,1704406286269,-500.0,0.0003589,2]
[310235938,1704406286278,-500.0,0.0003589,2]
[310235939,1704406286288,-668.71,0.0003589,2]
[310235940,1704406286297,-529.99,0.0003589,2]
[310235941,1704406286306,-500.0,0.0003589,2]
[310235942,1704406286315,-500.0,0.0003589,2]
[310235943,1704406286324,-500.0,0.0003589,2]
[310235944,1704406286333,-500.0,0.0003589,2]
[310235945,1704406286342,-500.0,0.0003589,2]
[310235946,1704406286351,-157.17,0.0003589,2]
[310235947,1704406286361,-330.51372583,0.0003589,2]
[310235948,1704406286371,-500.0,0.0003589,2]
[310235949,1704406286380,-500.0,0.0003589,2]
[310235950,1704406286389,-500.0,0.0003589,2]
[310235951,1704406286398,-500.0,0.0003589,2]
[310235952,1704406286407,-500.0,0.0003589,2]
[310235953,1704406286416,-500.0,0.0003589,2]
[310235954,1704406286425,-500.0,0.0003589,2]
[310235955,1704406286435,-500.0,0.0003589,2]
[310235956,1704406286444,-500.0,0.0003589,2]
[310235957,1704406286454,-500.0,0.0003589,2]
[310235958,1704406286463,-533.64,0.0003589,2]
[310235959,1704406286473,-584.60307058,0.0003589,2]
[310235960,1704406286482,-586.88,0.0003589,2]
[310235961,1704406286491,-500.0,0.0003589,2]
[310235962,1704406286501,-500.0,0.0003589,2]
[310235963,1704406286510,-970.98,0.0003589,2]
[310235964,1704406286519,-1000.0,0.000359,2]
[310235965,1704406286528,-319.89,0.000359,7]
[310235966,1704406286537,-153.84,0.00035962,2]
[310235967,1704406286546,-151.69832518,0.00035981,2]
[310235968,1704406286556,-329.02557974,0.00035999,2]
[310235969,1704406286565,-100000.0,0.00036,6]
[310235970,1704406286574,-1000.0,0.00036,2]
[310235971,1704406286584,-760.92227324,0.00036,4]
[310235972,1704406286594,-453.65035999,0.00036,4]
[310235973,1704406286603,-271.913586,0.00036,7]
[310235974,1704406286613,-271.913586,0.00036,7]
[310235975,1704406286622,-500.0,0.00036,120]
[310235976,1704406286631,-498.06,0.00036071,2]
[310235977,1704406286641,-335.59594158,0.00036164,2]
[310235978,1704406286651,-207.44077872,0.00036164,2]
[310235979,1704406286662,-500.0,0.00036164,2]
[310235980,1704406286672,-500.0,0.00036164,2]
[310235981,1704406286681,-668.71,0.00036164,2]
[310235982,1704406286690,-529.99,0.00036164,2]
[310235983,1704406286699,-617.06,0.00036164,2]
[310235984,1704406286707,-500.0,0.00036164,2]
[310235985,1704406286716,-538.43,0.00036164,2]
[310235986,1704406286725,-486.01588392,0.00036164,2]
[310235987,1704406286734,-500.0,0.00036164,2]
[310235988,1704406286743,-500.0,0.00036164,2]
[310235989,1704406286754,-500.0,0.00036164,2]
[310235990,1704406286763,-500.0,0.00036164,2]
[310235991,1704406286772,-500.0,0.00036164,2]
[310235992,1704406286780,-500.0,0.00036164,2]
[310235993,1704406286790,-500.0,0.00036164,2]
[310235994,1704406286799,-500.0,0.00036164,2]
[310235995,1704406286808,-533.64,0.00036164,2]
[310235996,1704406286818,-586.88,0.00036164,2]
[310235997,1704406286827,-500.0,0.00036164,2]
[310235998,1704406286837,-500.0,0.00036164,2]
[310235999,1704406286847,-970.98,0.00036164,2]
[310236000,1704406286856,-3275.91179109,0.000364,2]
[310236001,1704406286865,-557.26,0.00036408,2]
[310236002,1704406286875,-500.0,0.00036438,2]
[310236003,1704406286884,-500.0,0.00036438,2]
[310236004,1704406286893,-668.71,0.00036438,2]
[310236005,1704406286902,-529.99,0.00036438,2]
[310236006,1704406286911,-500.0,0.00036438,2]
[310236007,1704406286920,-500.0,0.00036438,2]
[310236008,1704406286929,-541.25623388,0.00036438,2]
[310236009,1704406286938,-500.0,0.00036438,2]
[310236010,1704406286947,-500.0,0.00036438,2]
[310236011,1704406286956,-500.0,0.00036438,2]
[310236012,1704406286965,-500.0,0.00036438,2]
[310236013,1704406286975,-391.69119143,0.00036438,2]
[310236014,1704406286984,-500.0,0.00036438,2]
[310236015,1704406286994,-533.64,0.00036438,2]
[310236016,1704406287003,-586.88,0.00036438,2]
[310236017,1704406287013,-500.0,0.00036438,2]
[310236018,1704406287026,-500.0,0.00036438,2]
[310236019,1704406287035,-970.98,0.00036438,2]
[310236020,1704406287044,-15081.60350932,0.0003645,11]
[310236021,1704406287055,-151.0,0.0003645,7]
[310236022,1704406287065,-3034.24246347,0.00036484,4]
[310236023,1704406287076,-4952.10303751,0.00036484,11]
[310236024,1704406287087,-150.0,0.00036554,2]
[310236025,1704406287096,-13076.89,0.000366,7]
[310236026,1704406287106,-7709.08,0.000366,7]
[310236027,1704406287114,-150.0,0.000367,26]
[310236028,1704406287124,-500.0,0.00036712,2]
[310236029,1704406287133,-500.0,0.00036712,2]
[310236030,1704406287142,-668.71,0.00036712,2]
[310236031,1704406287152,-529.99,0.00036712,2]
[310236032,1704406287161,-500.0,0.00036712,2]
[310236033,1704406287170,-500.0,0.00036712,2]
[310236034,1704406287180,-500.0,0.00036712,2]
[310236035,1704406287189,-500.0,0.00036712,2]
[310236036,1704406287198,-199.81,0.00036712,2]
[310236037,1704406287207,-455.27639958,0.00036712,2]
[310236038,1704406287217,-500.0,0.00036712,2]
[310236039,1704406287226,-533.64,0.00036712,2]
[310236040,1704406287235,-586.88,0.00036712,2]
[310236041,1704406287244,-500.0,0.00036712,2]
[310236042,1704406287254,-500.0,0.00036712,2]
[310236043,1704406287263,-970.98,0.00036712,2]
[310236044,1704406287272,-153.84,0.00036884,2]
[310236045,1704406287282,-104990.87324519,0.000369,5]
[310236046,1704406287291,-193.66588277,0.00036986,2]
[310236047,1704406287300,-500.0,0.00036986,2]
[310236048,1704406287309,-668.71,0.00036986,2]
[310236049,1704406287319,-529.99,0.00036986,2]
[310236050,1704406287328,-500.0,0.00036986,2]
[310236051,1704406287337,-500.0,0.00036986,2]
[310236052,1704406287346,-500.0,0.00036986,2]
[310236053,1704406287356,-500.005002,0.00036986,2]
[310236054,1704406287365,-500.0,0.00036986,2]
[310236055,1704406287374,-533.64,0.00036986,2]
[310236056,1704406287383,-586.88,0.00036986,2]
[310236057,1704406287392,-185.8940623,0.00036986,2]
[310236058,1704406287401,-500.0,0.00036986,2]
[310236059,1704406287410,-970.98,0.00036986,2]
[310236060,1704406287419,-159.01,0.00036986,15]
[310236061,1704406287428,-100000.0,0.00037,7]
[310236062,1704406287438,-151.0,0.00037,7]
[310236063,1704406287447,-151.0,0.00037,7]
[310236064,1704406287456,-151.0,0.00037,7]
[310236065,1704406287465,-393.360716,0.00037,7]
[310236066,1704406287474,-393.360716,0.00037,7]
[310236067,1704406287484,-151.0,0.00037,7]
[310236068,1704406287493,-151.0,0.00037,7]
[310236069,1704406287502,-308.92091342,0.00037,4]
[310236070,1704406287511,-603.05789513,0.00037,4]
[310236071,1704406287521,-500.0,0.00037,3]
[310236072,1704406287530,-2010.2,0.00037,2]
[310236073,1704406287540,-500.0,0.00037,120]
[310236074,1704406287549,-319.89,0.000371,7]
[310236075,1704406287559,-2300.48793908,0.00037111,2]
[310236076,1704406287569,-786.51846879,0.00037118,9]
[310236077,1704406287579,-786.51846876,0.00037118,9]
[310236078,1704406287589,-786.51846876,0.00037118,9]
[310236079,1704406287598,-786.51846876,0.00037118,9]
[310236080,1704406287608,-786.51846876,0.00037118,9]
[310236081,1704406287617,-931.0,0.00037167,20]
[310236082,1704406287626,-368.0,0.00037167,20]
[310236083,1704406287635,-277.44626,0.000372,26]
[310236084,1704406287645,-809.29907843,0.0003724,4]
[310236085,1704406287654,-500.0,0.0003726,2]
[310236086,1704406287663,-668.71,0.0003726,2]
[310236087,1704406287673,-529.99,0.0003726,2]
[310236088,1704406287682,-500.0,0.0003726,2]
[310236089,1704406287691,-500.0,0.0003726,2]
[310236090,1704406287700,-500.0,0.0003726,2]
[310236091,1704406287710,-500.0,0.0003726,2]
[310236092,1704406287720,-533.64,0.0003726,2]
[310236093,1704406287730,-586.88,0.0003726,2]
[310236094,1704406287740,-500.0,0.0003726,2]
[310236095,1704406287750,-970.98,0.0003726,2]
[310236096,1704406287759,-557.26,0.00037387,2]
[310236097,1704406287769,-150.0,0.00037491,2]
[310236098,1704406287778,-408.4281739,0.00037534,2]
[310236099,1704406287788,-668.71,0.00037534,2]
[310236100,1704406287798,-529.99,0.00037534,2]
[310236101,1704406287809,-500.0,0.00037534,2]
[310236102,1704406287819,-500.0,0.00037534,2]
[310236103,1704406287829,-500.0,0.00037534,2]
[310236104,1704406287847,-500.0,0.00037534,2]
[310236105,1704406287858,-533.64,0.00037534,2]
[310236106,1704406287869,-586.88,0.00037534,2]
[310236107,1704406287879,-500.0,0.00037534,2]
[310236108,1704406287889,-970.98,0.00037534,2]
[310236109,1704406287899,-931.0,0.0003755,20]
[310236110,1704406287909,-368.0,0.0003755,20]
[310236111,1704406287919,-212.0,0.00037571,10]
[310236112,1704406287929,-16219.619,0.00037578,2]
[310236113,1704406287938,-2263.0,0.00037578,2]
[310236114,1704406287948,-13076.89,0.000376,7]
[310236115,1704406287958,-7709.08,0.000376,7]
[310236116,1704406287968,-302.30426435,0.00037641,4]
[310236117,1704406287978,-1876.16,0.00037649,2]
[310236118,1704406287988,-5144.35,0.0003765,15]
[310236119,1704406287997,-1299.29,0.00037729,2]
[310236120,1704406288008,-153.84,0.00037806,2]
[310236121,1704406288018,-668.71,0.00037808,2]
[310236122,1704406288029,-529.99,0.00037808,2]
[310236123,1704406288039,-500.0,0.00037808,2]
[310236124,1704406288049,-552.83841241,0.00037808,2]
[310236125,1704406288058,-500.0,0.00037808,2]
[310236126,1704406288069,-500.0,0.00037808,2]
[310236127,1704406288078,-533.64,0.00037808,2]
[310236128,1704406288091,-586.88,0.00037808,2]
[310236129,1704406288101,-500.0,0.00037808,2]
[310236130,1704406288110,-970.98,0.00037808,2]
[310236131,1704406288121,-150.0,0.00037899,2]
[310236132,1704406288130,-271.913586,0.000379,7]
[310236133,1704406288140,-271.913586,0.000379,7]
[310236134,1704406288149,-151.0,0.000379,7]
[310236135,1704406288158,-151.0,0.000379,7]
[310236136,1704406288166,-208.916737,0.000379,7]
[310236137,1704406288175,-208.916737,0.000379,7]
[310236138,1704406288184,-602.34911,0.000379,7]
[310236139,1704406288193,-602.34911,0.000379,7]
[310236140,1704406288202,-151.0,0.000379,7]
[310236141,1704406288211,-151.0,0.000379,7]
[310236142,1704406288221,-1159.09725,0.000379,2]
[310236143,1704406288230,-683908.941039,0.000379,3]
[310236144,1704406288238,-931.0,0.00037933,20]
[310236145,1704406288247,-368.0,0.00037933,20]
[310236146,1704406288256,-157.782842,0.00037957,7]
[310236147,1704406288265,-930.0,0.0003799,2]
[310236148,1704406288274,-100000.0,0.00038,8]
[310236149,1704406288284,-500.0,0.00038,120]
[310236150,1704406288294,-157.0,0.00038,2]
[310236151,1704406288306,-181.0,0.00038,2]
[310236152,1704406288315,-668.71,0.00038082,2]
[310236153,1704406288325,-529.99,0.00038082,2]
[310236154,1704406288336,-500.0,0.00038082,2]
[310236155,1704406288346,-500.0,0.00038082,2]
[310236156,1704406288358,-184.56,0.00038082,2]
[310236157,1704406288368,-533.64,0.00038082,2]
[310236158,1704406288378,-586.88,0.00038082,2]
[310236159,1704406288387,-500.0,0.00038082,2]
[310236160,1704406288397,-970.98,0.00038082,2]
[310236161,1704406288407,-771.906904,0.00038082,14]
[310236162,1704406288416,-319.89,0.000382,7]
[310236163,1704406288426,-153.95,0.000382,3]
[310236164,1704406288435,-153.95,0.000382,3]
[310236165,1704406288445,-1567.18413243,0.00038201,2]
[310236166,1704406288455,-9276.78792257,0.00038201,30]
[310236167,1704406288464,-1897.696329,0.00038201,30]
[310236168,1704406288474,-304.434167,0.00038201,30]
[310236169,1704406288483,-1962.663427,0.00038201,30]
[310236170,1704406288493,-1381.73700143,0.00038251,2]
[310236171,1704406288502,-1000.0,0.00038268,30]
[310236172,1704406288512,-1784.14,0.00038268,5]
[310236173,1704406288522,-1000.0,0.00038287,30]
[310236174,1704406288531,-13076.89,0.000383,7]
[310236175,1704406288541,-7709.08,0.000383,7]
[310236176,1704406288551,-229.96625603,0.00038316,20]
[310236177,1704406288561,-931.0,0.00038316,20]
[310236178,1704406288570,-368.0,0.00038316,20]
[310236179,1704406288580,-498.06,0.00038335,2]
[310236180,1704406288591,-1598.92463841,0.00038356,30]
[310236181,1704406288601,-668.71,0.00038356,2]
[310236182,1704406288610,-529.99,0.00038356,2]
[310236183,1704406288620,-500.0,0.00038356,2]
[310236184,1704406288629,-666.0,0.00038356,2]
[310236185,1704406288639,-627.2,0.00038356,2]
[310236186,1704406288648,-500.0,0.00038356,2]
[310236187,1704406288657,-533.64,0.00038356,2]
[310236188,1704406288667,-586.88,0.00038356,2]
[310236189,1704406288677,-500.0,0.00038356,2]
[310236190,1704406288686,-970.98,0.00038356,2]
[310236191,1704406288695,-3972.68,0.0003836,2]
[310236192,1704406288705,-3972.68,0.0003836,2]
[310236193,1704406288715,-3972.68,0.0003836,2]
[310236194,1704406288725,-3972.68,0.0003836,2]
[310236195,1704406288734,-3972.68,0.0003836,2]
[310236196,1704406288744,-3972.68,0.0003836,2]
[310236197,1704406288755,-3972.68,0.0003836,2]
[310236198,1704406288765,-3972.68,0.0003836,2]
[310236199,1704406288774,-3972.68,0.0003836,2]
[310236200,1704406288785,-3972.68,0.0003836,2]
[310236201,1704406288796,-557.26,0.00038365,2]
[310236202,1704406288806,-1000.0,0.000384,2]
[310236203,1704406288816,-401.81459014,0.000384,2]
[310236204,1704406288825,-641.0,0.000384,2]
[310236205,1704406288836,-559.0,0.000384,2]
[310236206,1704406288845,-3000.0,0.000384,2]
[310236207,1704406288855,-500.0,0.000384,2]
[310236208,1704406288864,-500.0,0.000384,2]
[310236209,1704406288875,-2000.0,0.000384,2]
[310236210,1704406288886,-257.09,0.00038426,2]
[310236211,1704406288920,-150.0,0.00038428,2]
[310236212,1704406288930,-786.51846876,0.00038472,10]
[310236213,1704406288943,-167.0,0.00038521,2]
[310236214,1704406288967,-1000.0,0.00038563,2]
[310236215,1704406288980,-1159.09726,0.0003858,2]
[310236216,1704406288990,-1000.0,0.000386,2]
[310236217,1704406289001,-668.71,0.0003863,2]
[310236218,1704406289012,-529.99,0.0003863,2]
[310236219,1704406289024,-575.6,0.0003863,2]
[310236220,1704406289035,-428.86,0.0003863,2]
[310236221,1704406289046,-533.64,0.0003863,2]
[310236222,1704406289058,-586.88,0.0003863,2]
[310236223,1704406289068,-339.7066,0.0003863,2]
[310236224,1704406289078,-970.98,0.0003863,2]
[310236225,1704406289087,-157.0,0.0003863,14]
[310236226,1704406289097,-181.0,0.0003863,14]
[310236227,1704406289107,-2010.2,0.00038665,2]
[310236228,1704406289117,-2300.48793908,0.00038689,2]
[310236229,1704406289127,-931.0,0.000387,20]
[310236230,1704406289137,-368.0,0.000387,20]
[310236231,1704406289146,-153.84,0.00038728,2]
[310236232,1704406289155,-746.545,0.0003873,2]
[310236233,1704406289165,-831.0,0.0003873,2]
[310236234,1704406289174,-1027.516,0.0003873,2]
[310236235,1704406289184,-1253.0,0.0003873,2]
[310236236,1704406289193,-176.13,0.00038745,2]
[310236237,1704406289203,-150.0,0.00038745,2]
[310236238,1704406289212,-627.2,0.00038767,2]
[310236239,1704406289222,-68566.12131187,0.000388,4]
[310236240,1704406289231,-3583.76422467,0.000388,30]
[310236241,1704406289241,-319.89,0.000388,7]
[310236242,1704406289251,-151.0,0.000388,7]
[310236243,1704406289261,-393.360716,0.000388,7]
[310236244,1704406289270,-393.360716,0.000388,7]
[310236245,1704406289280,-151.0,0.000388,7]
[310236246,1704406289290,-151.0,0.000388,7]
[310236247,1704406289299,-520.27,0.00038825,2]
[310236248,1704406289310,-348.08,0.00038836,2]